[Event "Rapid Tournament (RAP)"]
[Site "Biel, Switzerland"]
[Date "2026.07.12"]
[Round "1.49"]
[White "Egli, Urs"]
[Black "Gunzinger, Severin"]
[Result "1/2-1/2"]
[TimeControl "15 + 5"]
[WhiteTitle "-"]
[BlackTitle "-"]
[WhiteFideId "1306685"]
[BlackFideId "1362518"]
[WhiteElo "1964"]
[BlackElo "1607"]

1. g3 {[%clk 00:15:08]} {[%emt 00:00:01]} d5 {[%clk 00:15:07]} {[%emt
00:00:03]} 2. Bg2 {[%clk 00:15:12]} c5 {[%clk 00:15:06]} {[%emt 00:00:07]} 3.
c4 {[%clk 00:15:15]} {[%emt 00:00:02]} Nf6 {[%clk 00:14:58]} {[%emt 00:00:13]}
4. cxd5 {[%clk 00:15:10]} {[%emt 00:00:10]} Nxd5 {[%clk 00:15:01]} {[%emt
00:00:03]} 5. Nc3 {[%clk 00:15:11]} {[%emt 00:00:03]} Nxc3 {[%clk 00:14:48]}
{[%emt 00:00:18]} 6. bxc3 {[%clk 00:15:13]} {[%emt 00:00:03]} g6 {[%clk
00:14:48]} {[%emt 00:00:05]} 7. Nf3 {[%clk 00:14:59]} {[%emt 00:00:19]} Bg7
{[%clk 00:14:47]} {[%emt 00:00:07]} 8. O-O {[%clk 00:14:56]} {[%emt 00:00:07]}
O-O {[%clk 00:14:43]} {[%emt 00:00:09]} 9. d4 {[%clk 00:14:40]} {[%emt
00:00:21]} cxd4 {[%clk 00:13:59]} {[%emt 00:00:49]} 10. cxd4 {[%clk 00:14:42]}
{[%emt 00:00:03]} Nc6 {[%clk 00:13:51]} {[%emt 00:00:14]} 11. e3 {[%clk
00:13:41]} {[%emt 00:01:05]} Bf5 {[%clk 00:13:26]} {[%emt 00:00:29]} 12. Qb3
{[%clk 00:13:09]} {[%emt 00:00:37]} Qd7 {[%clk 00:13:05]} {[%emt 00:00:27]} 13.
Ba3 {[%clk 00:12:45]} {[%emt 00:00:29]} Rac8 {[%clk 00:12:06]} {[%emt
00:01:05]} 14. Rac1 {[%clk 00:12:10]} {[%emt 00:00:40]} Rc7 {[%clk 00:11:28]}
{[%emt 00:00:42]} 15. d5 {[%clk 00:11:08]} {[%emt 00:01:07]} Ne5 {[%clk
00:10:21]} {[%emt 00:01:12]} 16. Nd4 {[%clk 00:10:36]} {[%emt 00:00:37]} Rxc1
{[%clk 00:08:48]} {[%emt 00:01:39]} 17. Rxc1 {[%clk 00:10:26]} {[%emt
00:00:14]} Bh3 {[%clk 00:08:10]} {[%emt 00:00:43]} 18. d6 {[%clk 00:08:05]}
{[%emt 00:02:26]} exd6 {[%clk 00:07:30]} {[%emt 00:00:45]} 19. Qxb7 {[%clk
00:07:57]} {[%emt 00:00:13]} Qxb7 {[%clk 00:06:24]} {[%emt 00:01:12]} 20. Bxb7
{[%clk 00:08:00]} {[%emt 00:00:02]} Rd8 {[%clk 00:05:53]} {[%emt 00:00:36]} 21.
Rc7 {[%clk 00:06:46]} {[%emt 00:01:18]} Bf8 {[%clk 00:04:37]} {[%emt 00:01:21]}
22. f4 {[%clk 00:06:02]} {[%emt 00:00:49]} Rd7 {[%clk 00:03:51]} {[%emt
00:00:51]} 23. Rxd7 {[%clk 00:05:51]} {[%emt 00:00:16]} Nxd7 {[%clk 00:03:54]}
{[%emt 00:00:03]} 24. Nc6 {[%clk 00:04:19]} {[%emt 00:01:36]} Be6 {[%clk
00:03:24]} {[%emt 00:00:35]} 25. Nxa7 {[%clk 00:03:57]} {[%emt 00:00:28]} Bxa2
{[%clk 00:03:22]} {[%emt 00:00:07]} 26. Nb5 {[%clk 00:03:16]} {[%emt 00:00:45]}
Nc5 {[%clk 00:03:02]} {[%emt 00:00:25]} 27. Bf3 {[%clk 00:02:59]} {[%emt
00:00:21]} f5 {[%clk 00:02:38]} {[%emt 00:00:29]} 28. Nc3 {[%clk 00:02:53]}
{[%emt 00:00:12]} Be6 {[%clk 00:02:32]} {[%emt 00:00:12]} 29. Bd5 {[%clk
00:02:31]} {[%emt 00:00:27]} Bxd5 {[%clk 00:02:23]} {[%emt 00:00:14]} 30. Nxd5
{[%clk 00:02:35]} Ne4 {[%clk 00:02:07]} {[%emt 00:00:21]} 31. Kf1 {[%clk
00:02:27]} {[%emt 00:00:11]} Kf7 {[%clk 00:02:02]} {[%emt 00:00:10]} 32. Ke2
{[%clk 00:02:22]} {[%emt 00:00:11]} Ke6 {[%clk 00:01:47]} {[%emt 00:00:20]} 33.
Nc7+ {[%clk 00:02:20]} {[%emt 00:00:07]} Kd7 {[%clk 00:01:44]} {[%emt
00:00:07]} 34. Nb5 {[%clk 00:02:21]} {[%emt 00:00:05]} Kc6 {[%clk 00:01:37]}
{[%emt 00:00:12]} 35. Nd4+ {[%clk 00:02:15]} {[%emt 00:00:11]} Kd5 {[%clk
00:01:19]} {[%emt 00:00:23]} 36. Nf3 {[%clk 00:01:59]} {[%emt 00:00:21]} Bg7
{[%clk 00:01:00]} {[%emt 00:00:24]} 37. Nd2 {[%clk 00:01:31]} {[%emt 00:00:33]}
Nxd2 {[%clk 00:00:51]} {[%emt 00:00:15]} 38. Kxd2 {[%clk 00:01:34]} {[%emt
00:00:01]} Ke6 {[%clk 00:00:47]} {[%emt 00:00:10]} 39. Kd3 {[%clk 00:01:36]}
{[%emt 00:00:02]} d5 {[%clk 00:00:45]} {[%emt 00:00:08]} 40. Bc5 {[%clk
00:01:29]} {[%emt 00:00:11]} Bf6 {[%clk 00:00:42]} {[%emt 00:00:08]} 41. Bd4
{[%clk 00:01:04]} {[%emt 00:00:31]} Be7 {[%clk 00:00:44]} {[%emt 00:00:03]} 42.
Bb2 {[%clk 00:00:53]} {[%emt 00:00:15]} Bb4 {[%clk 00:00:42]} {[%emt 00:00:07]}
43. Bc3 {[%clk 00:00:47]} {[%emt 00:00:11]} Ba3 {[%clk 00:00:41]} {[%emt
00:00:06]} 44. Bd2 {[%clk 00:00:40]} {[%emt 00:00:12]} Kd6 {[%clk 00:00:40]}
{[%emt 00:00:07]} 45. Bc3 {[%clk 00:00:43]} {[%emt 00:00:02]} Kc5 {[%clk
00:00:35]} {[%emt 00:00:09]} 46. Bg7 {[%clk 00:00:43]} {[%emt 00:00:05]} Bc1
{[%clk 00:00:29]} {[%emt 00:00:12]} 47. Bf8+ {[%clk 00:00:42]} {[%emt
00:00:05]} Kc6 {[%clk 00:00:25]} {[%emt 00:00:09]} 48. Bb4 {[%clk 00:00:36]}
{[%emt 00:00:11]} Kb5 {[%clk 00:00:19]} {[%emt 00:00:11]} 49. Bd6 {[%clk
00:00:35]} {[%emt 00:00:06]} Bb2 {[%clk 00:00:14]} {[%emt 00:00:10]} 50. Be7
{[%clk 00:00:30]} {[%emt 00:00:10]} Kc6 {[%clk 00:00:14]} {[%emt 00:00:05]} 51.
Bb4 {[%clk 00:00:33]} {[%emt 00:00:03]} 1/2-1/2

[Event "Rapid Tournament (RAP)"]
[Site "Biel, Switzerland"]
[Date "2026.07.12"]
[Round "1.50"]
[White "Mury, Marie"]
[Black "Alexakis, Dimitrios"]
[Result "0-1"]
[TimeControl "15 + 5"]
[WhiteTitle "-"]
[BlackTitle "-"]
[WhiteFideId "576035050"]
[BlackFideId "4200527"]
[WhiteElo "1603"]
[BlackElo "1954"]

1. e4 {[%clk 00:15:07]} {[%emt 00:00:03]} c5 {[%clk 00:15:04]} {[%emt
00:00:05]} 2. c3 {[%clk 00:15:08]} {[%emt 00:00:06]} Nf6 {[%clk 00:15:00]}
{[%emt 00:00:08]} 3. e5 {[%clk 00:15:09]} {[%emt 00:00:05]} Nd5 {[%clk
00:15:03]} {[%emt 00:00:01]} 4. d4 {[%clk 00:15:06]} {[%emt 00:00:09]} cxd4
{[%clk 00:15:02]} {[%emt 00:00:05]} 5. cxd4 {[%clk 00:15:10]} {[%emt 00:00:01]}
e6 {[%clk 00:15:03]} {[%emt 00:00:03]} 6. Nc3 {[%clk 00:15:13]} {[%emt
00:00:03]} Nxc3 {[%clk 00:14:58]} {[%emt 00:00:10]} 7. bxc3 {[%clk 00:15:17]}
{[%emt 00:00:01]} d6 {[%clk 00:14:59]} {[%emt 00:00:04]} 8. Nf3 {[%clk
00:15:14]} {[%emt 00:00:08]} Nc6 {[%clk 00:14:57]} {[%emt 00:00:07]} 9. Bd3
{[%clk 00:14:56]} {[%emt 00:00:23]} Be7 {[%clk 00:14:08]} {[%emt 00:00:53]} 10.
O-O {[%clk 00:13:46]} {[%emt 00:01:16]} dxe5 {[%clk 00:14:10]} {[%emt
00:00:03]} 11. Nxe5 {[%clk 00:13:00]} {[%emt 00:00:51]} Nxe5 {[%clk 00:14:08]}
{[%emt 00:00:07]} 12. dxe5 {[%clk 00:13:03]} {[%emt 00:00:03]} O-O {[%clk
00:13:34]} {[%emt 00:00:38]} 13. Qf3 {[%clk 00:11:59]} {[%emt 00:01:08]} Rb8
{[%emt 00:00:55]} 14. Rd1 {[%clk 00:11:46]} {[%emt 00:00:16]} Qa5 {[%clk
00:12:25]} {[%emt 00:00:27]} 15. a4 {[%clk 00:10:11]} {[%emt 00:01:40]} b5
{[%clk 00:11:24]} {[%emt 00:01:05]} 16. Bd2 {[%clk 00:09:31]} {[%emt 00:00:46]}
bxa4 {[%clk 00:10:30]} {[%emt 00:00:59]} 17. Qe4 {[%clk 00:07:51]} {[%emt
00:01:44]} g6 {[%clk 00:10:33]} {[%emt 00:00:02]} 18. Rxa4 {[%clk 00:07:40]}
{[%emt 00:00:17]} Qc7 {[%clk 00:10:20]} {[%emt 00:00:17]} 19. Rc4 {[%clk
00:06:49]} {[%emt 00:00:57]} Qa5 {[%clk 00:09:58]} {[%emt 00:00:27]} 20. Bh6
{[%clk 00:06:23]} {[%emt 00:00:31]} Rd8 {[%clk 00:09:43]} {[%emt 00:00:20]} 21.
h3 {[%clk 00:06:04]} {[%emt 00:00:23]} Bb7 {[%clk 00:09:24]} {[%emt 00:00:25]}
22. Qf4 {[%clk 00:05:10]} {[%emt 00:00:56]} Bd5 {[%clk 00:07:59]} {[%emt
00:01:33]} 23. Ra4 {[%clk 00:03:59]} {[%emt 00:01:16]} Qc7 {[%clk 00:08:02]}
{[%emt 00:00:02]} 24. c4 {[%clk 00:03:42]} {[%emt 00:00:22]} Bxg2 {[%clk
00:07:31]} {[%emt 00:00:36]} 25. f3 {[%clk 00:03:02]} {[%emt 00:00:46]} Bxh3
{[%clk 00:07:04]} {[%emt 00:00:31]} 26. Ra2 {[%clk 00:02:12]} {[%emt 00:00:55]}
Bf5 {[%clk 00:06:49]} {[%emt 00:00:19]} 27. Rh2 {[%clk 00:01:52]} {[%emt
00:00:25]} Qc5+ {[%clk 00:05:59]} {[%emt 00:00:56]} 28. Kg2 {[%clk 00:01:17]}
{[%emt 00:00:40]} Rb2+ {[%clk 00:05:48]} {[%emt 00:00:16]} 29. Rd2 {[%clk
00:00:58]} {[%emt 00:00:24]} Rxd2+ {[%clk 00:05:38]} {[%emt 00:00:14]} 30. Qxd2
{[%clk 00:00:56]} {[%emt 00:00:08]} Rxd3 {[%clk 00:05:32]} {[%emt 00:00:11]} 31.
Qe1 {[%clk 00:00:37]} {[%emt 00:00:23]} Qc6 {[%clk 00:05:10]} {[%emt 00:00:28]}
32. Qg3 {[%clk 00:00:29]} {[%emt 00:00:13]} Rxf3 {[%clk 00:04:50]} {[%emt
00:00:25]} 33. Qxf3 {[%clk 00:00:29]} {[%emt 00:00:05]} Be4 {[%clk 00:04:52]}
{[%emt 00:00:03]} 0-1

[Event "Rapid Tournament (RAP)"]
[Site "Biel, Switzerland"]
[Date "2026.07.12"]
[Round "1.51"]
[White "Laub, Patrick"]
[Black "Hajduk, Mariia"]
[Result "1-0"]
[TimeControl "15 + 5"]
[WhiteTitle "-"]
[BlackTitle "-"]
[WhiteFideId "1302566"]
[BlackFideId "1368559"]
[WhiteElo "1949"]
[BlackElo "1602"]

1. e4 {[%clk 00:15:06]} {[%emt 00:00:02]} e5 {[%clk 00:15:10]} 2. Nc3 {[%clk
00:15:10]} {[%emt 00:00:03]} Nf6 {[%clk 00:15:12]} {[%emt 00:00:02]} 3. d4
{[%clk 00:15:13]} {[%emt 00:00:02]} d6 {[%clk 00:15:06]} {[%emt 00:00:11]} 4.
dxe5 {[%clk 00:15:13]} {[%emt 00:00:05]} dxe5 {[%clk 00:15:09]} {[%emt
00:00:01]} 5. Qxd8+ {[%clk 00:15:15]} {[%emt 00:00:04]} Kxd8 {[%clk 00:15:13]}
{[%emt 00:00:02]} 6. Bg5 {[%clk 00:15:17]} {[%emt 00:00:03]} Be6 {[%clk
00:14:47]} {[%emt 00:00:29]} 7. O-O-O+ {[%clk 00:15:16]} {[%emt 00:00:07]} Bd6
{[%clk 00:14:41]} {[%emt 00:00:11]} 8. Nf3 {[%clk 00:14:04]} {[%emt 00:01:17]}
Nc6 {[%clk 00:14:27]} {[%emt 00:00:20]} 9. Kb1 {[%clk 00:14:00]} {[%emt
00:00:08]} Ke7 {[%clk 00:14:12]} {[%emt 00:00:20]} 10. Nd5+ {[%clk 00:13:46]}
{[%emt 00:00:19]} Bxd5 {[%clk 00:13:44]} {[%emt 00:00:34]} 11. exd5 {[%clk
00:13:48]} {[%emt 00:00:02]} Nd8 {[%clk 00:13:25]} {[%emt 00:00:24]} 12. Bc4
{[%clk 00:13:19]} {[%emt 00:00:33]} Re8 {[%clk 00:13:13]} {[%emt 00:00:18]} 13.
Rhe1 {[%clk 00:12:57]} {[%emt 00:00:27]} Kf8 {[%clk 00:13:09]} {[%emt
00:00:09]} 14. Bb5 {[%clk 00:11:44]} {[%emt 00:01:17]} Re7 {[%clk 00:12:55]}
{[%emt 00:00:20]} 15. Nh4 {[%clk 00:11:27]} {[%emt 00:00:23]} h6 {[%clk
00:12:46]} {[%emt 00:00:12]} 16. Bxf6 {[%clk 00:11:21]} {[%emt 00:00:12]} gxf6
{[%clk 00:12:34]} {[%emt 00:00:18]} 17. Nf5 {[%clk 00:11:25]} {[%emt 00:00:01]}
a6 {[%clk 00:12:20]} {[%emt 00:00:19]} 18. Nxe7 {[%clk 00:11:21]} {[%emt
00:00:08]} axb5 {[%clk 00:12:16]} {[%emt 00:00:10]} 19. Nf5 {[%clk 00:11:24]}
{[%emt 00:00:01]} Bc5 {[%clk 00:11:58]} {[%emt 00:00:24]} 20. f3 {[%clk
00:11:02]} {[%emt 00:00:26]} h5 {[%clk 00:11:42]} {[%emt 00:00:20]} 21. Re4
{[%clk 00:11:04]} {[%emt 00:00:03]} Ke8 {[%clk 00:10:20]} {[%emt 00:01:27]} 22.
Rh4 {[%clk 00:11:05]} {[%emt 00:00:05]} Kd7 {[%clk 00:10:11]} {[%emt 00:00:13]}
23. Rxh5 {[%clk 00:11:09]} {[%emt 00:00:02]} c6 {[%clk 00:08:58]} {[%emt
00:01:19]} 24. dxc6+ {[%clk 00:11:11]} {[%emt 00:00:03]} Kxc6 {[%clk 00:09:00]}
{[%emt 00:00:02]} 25. Rh8 {[%clk 00:11:12]} {[%emt 00:00:04]} Kc7 {[%clk
00:08:36]} {[%emt 00:00:29]} 26. h4 {[%clk 00:11:09]} {[%emt 00:00:08]} Rc8
{[%clk 00:06:27]} {[%emt 00:02:15]} 27. h5 {[%clk 00:11:09]} {[%emt 00:00:04]}
Ne6 {[%clk 00:06:23]} {[%emt 00:00:09]} 28. Rxc8+ {[%clk 00:11:05]} {[%emt
00:00:09]} Kxc8 {[%clk 00:06:27]} {[%emt 00:00:02]} 29. h6 {[%clk 00:10:15]}
{[%emt 00:00:54]} Ng5 {[%clk 00:06:20]} {[%emt 00:00:12]} 30. Rd5 {[%clk
00:09:54]} {[%emt 00:00:26]} Bf8 {[%clk 00:05:50]} {[%emt 00:00:34]} 31. Rxb5
{[%clk 00:09:48]} {[%emt 00:00:12]} Kc7 {[%clk 00:05:22]} {[%emt 00:00:32]} 32.
Ra5 {[%clk 00:09:36]} {[%emt 00:00:18]} Bb4 {[%clk 00:04:58]} {[%emt 00:00:29]}
33. Ra8 {[%clk 00:09:31]} {[%emt 00:00:09]} e4 {[%clk 00:04:29]} {[%emt
00:00:34]} 34. fxe4 {[%clk 00:09:24]} {[%emt 00:00:13]} Kd7 {[%clk 00:04:21]}
{[%emt 00:00:14]} 35. Rg8 {[%clk 00:09:20]} {[%emt 00:00:08]} Ke6 {[%clk
00:04:24]} {[%emt 00:00:02]} 36. Rxg5 {[%clk 00:09:13]} {[%emt 00:00:12]} fxg5
{[%clk 00:04:22]} {[%emt 00:00:07]} 37. h7 {[%clk 00:09:15]} {[%emt 00:00:03]}
Bc5 {[%clk 00:02:33]} {[%emt 00:01:53]} 38. h8=Q {[%clk 00:09:16]} {[%emt
00:00:06]} f6 {[%clk 00:02:31]} {[%emt 00:00:06]} 39. Qe8+ {[%clk 00:09:09]}
{[%emt 00:00:10]} 1-0

[Event "Rapid Tournament (RAP)"]
[Site "Biel, Switzerland"]
[Date "2026.07.12"]
[Round "1.52"]
[White "Thomas, Vitus"]
[Black "Schwab, Felix"]
[Result "0-1"]
[TimeControl "15 + 5"]
[WhiteTitle "-"]
[BlackTitle "-"]
[WhiteFideId "1370790"]
[BlackFideId "1311450"]
[WhiteElo "1600"]
[BlackElo "1945"]

1. e4 {[%clk 00:15:06]} {[%emt 00:00:02]} e5 {[%clk 00:15:08]} {[%emt
00:00:03]} 2. Nf3 {[%clk 00:15:09]} {[%emt 00:00:02]} Nc6 {[%clk 00:15:11]}
{[%emt 00:00:02]} 3. Bc4 {[%clk 00:15:12]} {[%emt 00:00:02]} Nf6 {[%clk
00:15:14]} {[%emt 00:00:02]} 4. Ng5 {[%clk 00:15:11]} {[%emt 00:00:05]} d5
{[%clk 00:15:17]} {[%emt 00:00:03]} 5. exd5 {[%clk 00:15:02]} {[%emt 00:00:14]}
Na5 {[%clk 00:15:20]} {[%emt 00:00:02]} 6. Bb5+ {[%clk 00:13:57]} {[%emt
00:01:10]} c6 {[%clk 00:15:22]} {[%emt 00:00:02]} 7. dxc6 {[%clk 00:13:57]}
{[%emt 00:00:05]} bxc6 {[%clk 00:15:25]} {[%emt 00:00:02]} 8. Qf3 {[%clk
00:12:45]} {[%emt 00:01:18]} cxb5 {[%clk 00:14:55]} {[%emt 00:00:35]} 9. Qxa8
{[%clk 00:12:35]} {[%emt 00:00:14]} Qc7 {[%clk 00:13:53]} {[%emt 00:01:08]} 10.
Qf3 {[%clk 00:11:22]} {[%emt 00:01:18]} Bb7 {[%clk 00:12:56]} {[%emt 00:01:02]}
11. Qd3 {[%clk 00:09:17]} {[%emt 00:02:09]} Bxg2 {[%clk 00:11:03]} {[%emt
00:01:59]} 12. Rg1 {[%clk 00:08:34]} {[%emt 00:00:47]} Bc6 {[%clk 00:11:01]}
{[%emt 00:00:08]} 13. Nc3 {[%clk 00:08:26]} {[%emt 00:00:12]} Qb7 {[%clk
00:09:47]} {[%emt 00:01:20]} 14. b3 {[%clk 00:07:10]} {[%emt 00:01:19]} Bc5
{[%clk 00:07:37]} {[%emt 00:02:16]} 15. Qe2 {[%clk 00:06:27]} {[%emt 00:00:47]}
O-O {[%clk 00:07:06]} {[%emt 00:00:36]} 16. a3 {[%clk 00:05:32]} {[%emt
00:01:02]} Bd4 {[%clk 00:05:06]} {[%emt 00:02:04]} 17. Bb2 {[%clk 00:04:34]}
{[%emt 00:01:03]} h6 {[%clk 00:05:05]} {[%emt 00:00:06]} 18. Nh3 {[%clk
00:04:07]} {[%emt 00:00:31]} Bf3 {[%clk 00:05:04]} {[%emt 00:00:07]} 19. Qd3
{[%clk 00:02:36]} {[%emt 00:01:37]} Rd8 {[%clk 00:04:41]} {[%emt 00:00:28]} 20.
Qf5 {[%clk 00:02:15]} {[%emt 00:00:25]} Bg2 {[%clk 00:02:12]} {[%emt 00:02:34]}
21. O-O-O {[%clk 00:01:51]} {[%emt 00:00:29]} Rc8 {[%clk 00:01:34]} {[%emt
00:00:44]} 22. Nxb5 {[%clk 00:00:55]} {[%emt 00:01:01]} Nxb3+ {[%clk 00:00:35]}
{[%emt 00:01:04]} 23. Kb1 {[%clk 00:00:41]} {[%emt 00:00:26]} Qxb5 {[%clk
00:00:13]} {[%emt 00:00:30]} 24. Qxc8+ {[%clk 00:00:27]} {[%emt 00:00:19]} Ne8
{[%clk 00:00:08]} {[%emt 00:00:10]} 25. cxb3 {[%clk 00:00:20]} {[%emt
00:00:11]} Be4+ {[%clk 00:00:07]} {[%emt 00:00:06]} 26. Ka2 {[%clk 00:00:22]}
{[%emt 00:00:04]} Bd5 {[%clk 00:00:10]} {[%emt 00:00:02]} 27. Qc2 {[%clk
00:00:18]} {[%emt 00:00:08]} a5 {[%clk 00:00:11]} {[%emt 00:00:04]} 28. Bxd4
{[%clk 00:00:19]} {[%emt 00:00:04]} exd4 {[%clk 00:00:13]} 29. a4 {[%clk
00:00:08]} {[%emt 00:00:08]} Qxa4+ {[%clk 00:00:14]} 30. Kb2 {[%clk 00:00:10]}
{[%emt 00:00:19]} Qb5 {[%clk 00:00:14]} 0-1

[Event "Rapid Tournament (RAP)"]
[Site "Biel, Switzerland"]
[Date "2026.07.12"]
[Round "1.53"]
[White "Tcheau, Alain"]
[Black "Pryimak, Natalya"]
[Result "1-0"]
[TimeControl "15 + 5"]
[WhiteTitle "-"]
[BlackTitle "-"]
[WhiteFideId "1306014"]
[BlackFideId "14125650"]
[WhiteElo "1932"]
[BlackElo "1595"]

1. h3 {[%clk 00:15:07]} {[%emt 00:00:03]} c6 {[%clk 00:15:05]} {[%emt
00:00:05]} 2. c3 {[%clk 00:15:10]} {[%emt 00:00:02]} d5 {[%clk 00:15:01]}
{[%emt 00:00:08]} 3. d4 {[%clk 00:15:14]} {[%emt 00:00:02]} Bf5 {[%clk
00:14:56]} {[%emt 00:00:11]} 4. Bf4 {[%clk 00:15:17]} {[%emt 00:00:02]} h6
{[%clk 00:14:36]} {[%emt 00:00:25]} 5. e3 {[%clk 00:15:19]} {[%emt 00:00:03]}
Nf6 {[%clk 00:14:36]} {[%emt 00:00:04]} 6. Bd3 {[%clk 00:15:21]} {[%emt
00:00:02]} Bxd3 {[%clk 00:14:34]} {[%emt 00:00:07]} 7. Qxd3 {[%clk 00:15:24]}
{[%emt 00:00:02]} Nbd7 {[%clk 00:14:26]} {[%emt 00:00:13]} 8. Nf3 {[%clk
00:15:27]} {[%emt 00:00:02]} e6 {[%clk 00:14:30]} {[%emt 00:00:02]} 9. Nbd2
{[%clk 00:15:29]} {[%emt 00:00:02]} a6 {[%clk 00:14:24]} {[%emt 00:00:11]} 10.
Bg3 {[%clk 00:15:31]} {[%emt 00:00:03]} c5 {[%clk 00:14:27]} {[%emt 00:00:02]}
11. O-O {[%clk 00:15:19]} {[%emt 00:00:17]} Qb6 {[%clk 00:14:04]} {[%emt
00:00:29]} 12. b3 {[%clk 00:15:05]} {[%emt 00:00:19]} Bd6 {[%clk 00:13:48]}
{[%emt 00:00:21]} 13. Bxd6 {[%clk 00:15:03]} {[%emt 00:00:06]} Qxd6 {[%clk
00:13:51]} {[%emt 00:00:02]} 14. Rfe1 {[%clk 00:14:51]} {[%emt 00:00:17]} O-O
{[%clk 00:13:26]} {[%emt 00:00:30]} 15. e4 {[%clk 00:13:28]} {[%emt 00:01:28]}
dxe4 {[%clk 00:11:56]} {[%emt 00:01:35]} 16. Nxe4 {[%clk 00:13:32]} {[%emt
00:00:02]} Qb6 {[%clk 00:11:07]} {[%emt 00:00:53]} 17. dxc5 {[%clk 00:13:24]}
{[%emt 00:00:13]} Nxc5 {[%clk 00:09:41]} {[%emt 00:01:31]} 18. Nxc5 {[%clk
00:13:26]} {[%emt 00:00:02]} Qxc5 {[%clk 00:09:45]} {[%emt 00:00:02]} 19. Qe3
{[%clk 00:13:04]} {[%emt 00:00:27]} Rac8 {[%clk 00:09:15]} {[%emt 00:00:35]} 20.
c4 {[%clk 00:12:54]} {[%emt 00:00:15]} Qxe3 {[%clk 00:08:35]} {[%emt 00:00:45]}
21. Rxe3 {[%clk 00:12:58]} {[%emt 00:00:01]} Rfd8 {[%clk 00:08:39]} {[%emt
00:00:01]} 22. Kf1 {[%clk 00:12:41]} {[%emt 00:00:22]} Rc5 {[%clk 00:08:08]}
{[%emt 00:00:36]} 23. Ke2 {[%clk 00:12:26]} {[%emt 00:00:20]} Kf8 {[%clk
00:07:53]} {[%emt 00:00:20]} 24. Rd3 {[%clk 00:12:10]} {[%emt 00:00:21]} Rdc8
{[%clk 00:07:41]} {[%emt 00:00:18]} 25. Rad1 {[%clk 00:12:09]} {[%emt
00:00:05]} Ke7 {[%clk 00:07:30]} {[%emt 00:00:16]} 26. g3 {[%clk 00:12:10]}
{[%emt 00:00:04]} b5 {[%clk 00:07:27]} {[%emt 00:00:09]} 27. Nd2 {[%clk
00:11:20]} {[%emt 00:00:54]} bxc4 {[%clk 00:06:32]} {[%emt 00:01:00]} 28. Nxc4
{[%clk 00:11:19]} {[%emt 00:00:06]} Nd5 {[%clk 00:06:32]} {[%emt 00:00:05]} 29.
h4 {[%clk 00:10:03]} {[%emt 00:01:21]} h5 {[%clk 00:06:29]} {[%emt 00:00:08]}
30. f4 {[%clk 00:08:10]} {[%emt 00:01:58]} R8c7 {[%clk 00:05:50]} {[%emt
00:00:45]} 31. R1d2 {[%clk 00:08:05]} {[%emt 00:00:10]} f6 {[%clk 00:04:53]}
{[%emt 00:01:01]} 32. Kf3 {[%clk 00:07:44]} {[%emt 00:00:26]} a5 {[%clk
00:04:44]} {[%emt 00:00:15]} 33. Re2 {[%clk 00:07:25]} {[%emt 00:00:23]} a4
{[%clk 00:04:36]} {[%emt 00:00:14]} 34. Ne3 {[%clk 00:07:06]} {[%emt 00:00:24]}
axb3 {[%clk 00:04:01]} {[%emt 00:00:40]} 35. Nxd5+ {[%clk 00:06:53]} {[%emt
00:00:18]} Rxd5 {[%clk 00:02:31]} {[%emt 00:01:35]} 36. Rxd5 {[%clk 00:06:56]}
{[%emt 00:00:02]} Rc3+ {[%clk 00:02:35]} 37. Kf2 {[%clk 00:06:50]} {[%emt
00:00:11]} 1-0

[Event "Rapid Tournament (RAP)"]
[Site "Biel, Switzerland"]
[Date "2026.07.12"]
[Round "1.54"]
[White "Cousin, Ismael"]
[Black "Hashem, Khaled"]
[Result "0-1"]
[TimeControl "15 + 5"]
[WhiteTitle "-"]
[BlackTitle "-"]
[WhiteFideId "1364561"]
[BlackFideId "10300201"]
[WhiteElo "1588"]
[BlackElo "1926"]

1. e4 {[%clk 00:15:08]} {[%emt 00:00:02]} e5 {[%clk 00:15:09]} {[%emt
00:00:02]} 2. Nf3 {[%clk 00:15:12]} Nc6 {[%clk 00:15:14]} {[%emt 00:00:01]} 3.
Bb5 {[%clk 00:15:15]} {[%emt 00:00:02]} Nge7 {[%clk 00:15:18]} 4. O-O {[%clk
00:15:15]} {[%emt 00:00:05]} g6 {[%clk 00:15:22]} 5. c3 {[%clk 00:15:17]}
{[%emt 00:00:04]} Bg7 {[%clk 00:15:26]} {[%emt 00:00:01]} 6. d4 {[%clk
00:15:10]} {[%emt 00:00:11]} exd4 {[%clk 00:15:29]} {[%emt 00:00:02]} 7. cxd4
{[%clk 00:15:14]} {[%emt 00:00:01]} d5 {[%clk 00:15:34]} 8. e5 {[%clk
00:15:16]} {[%emt 00:00:04]} h6 {[%clk 00:15:34]} {[%emt 00:00:05]} 9. Nc3
{[%clk 00:14:59]} {[%emt 00:00:22]} O-O {[%clk 00:15:37]} {[%emt 00:00:02]} 10.
Re1 {[%clk 00:15:02]} {[%emt 00:00:01]} Bg4 {[%clk 00:15:40]} {[%emt 00:00:02]}
11. Qd3 {[%clk 00:15:04]} {[%emt 00:00:04]} Bxf3 {[%clk 00:15:40]} {[%emt
00:00:05]} 12. gxf3 {[%clk 00:14:53]} {[%emt 00:00:16]} a6 {[%clk 00:15:37]}
{[%emt 00:00:07]} 13. Ba4 {[%clk 00:14:48]} {[%emt 00:00:11]} Nf5 {[%clk
00:13:42]} {[%emt 00:02:00]} 14. Ne2 {[%clk 00:14:17]} {[%emt 00:00:36]} Qh4
{[%clk 00:12:34]} {[%emt 00:01:12]} 15. Bxc6 {[%clk 00:13:23]} {[%emt
00:00:59]} bxc6 {[%clk 00:12:38]} {[%emt 00:00:02]} 16. Nf4 {[%clk 00:13:24]}
{[%emt 00:00:03]} g5 {[%clk 00:11:56]} {[%emt 00:00:46]} 17. Qxf5 {[%clk
00:13:06]} {[%emt 00:00:24]} gxf4 {[%clk 00:11:59]} {[%emt 00:00:03]} 18. Qxf4
{[%clk 00:13:09]} {[%emt 00:00:01]} Qh3 {[%clk 00:11:54]} {[%emt 00:00:10]} 19.
Kh1 {[%clk 00:13:09]} {[%emt 00:00:05]} Rae8 {[%clk 00:11:51]} {[%emt
00:00:07]} 20. Rg1 {[%clk 00:13:12]} {[%emt 00:00:03]} Kh7 {[%clk 00:09:54]}
{[%emt 00:02:03]} 21. Qg4 {[%clk 00:12:23]} {[%emt 00:00:54]} Qxg4 {[%clk
00:09:56]} {[%emt 00:00:02]} 22. fxg4 {[%clk 00:12:26]} {[%emt 00:00:02]} f6
{[%clk 00:10:01]} 23. f4 {[%clk 00:12:27]} {[%emt 00:00:05]} fxe5 {[%clk
00:09:58]} {[%emt 00:00:08]} 24. fxe5 c5 {[%emt 00:00:01]} 25. dxc5 {[%clk
00:11:41]} {[%emt 00:00:55]} Rxe5 {[%clk 00:08:28]} {[%emt 00:01:39]} 26. Bf4
{[%clk 00:11:37]} {[%emt 00:00:08]} Rxf4 {[%clk 00:08:32]} {[%emt 00:00:02]}
0-1